Cogmind - Beta 14 @@@ ROGUE MODE // 2024.09.01 @ 22:50:37 Player: THN-L0C Result: Destroyed by C-17 Slicer with Concussive RPG Performance ------------- Evolutions (3) 1500 Regions Visited (11) 2200 Robots Destroyed (110) 550 Value Destroyed (3319) 3319 Prototype IDs (30) 600 Alien Tech Used (0) 0 Bonus (2150) 2150 TOTAL SCORE: 10319 Bonus ------- High Alert Combat Kills 207 Follower Combat Kills 304 Entered Garrisons 400 Used RIF Installer 1000 Aligned with FarCom 300 Friendly Fire -61 Cogmind --------- Core Integrity 0/700 Matter 156/300 Energy 100/100 System Corruption 0% Temperature Cool (0) Movement Core (700) Ox13 Location -7/Garrison Parts ------- > --- POWER (2) -------- (None) > --- PROPULSION (3) --- (None) > --- UTILITY (5) ------ High-capacity Storage Unit Core Analyzer > --- WEAPON (3) ------- (None) > --- INVENTORY (20) --- Nuclear Core Medium Treads Large Storage Unit High-capacity Matter Pod (200) Advanced Visual Processing Unit Core Analyzer Relay Coupler [NC] (22) Relay Coupler [Grunt] (26) Relay Coupler [Sentry] (23) Relay Coupler [Hunter] (17) Beamcaster Long-range Proton Cannon Field Lobotomy Kit (3) Improved Plasma Cutter Axe Peak State ------------ > --- POWER ------------ Nuclear Core Light Angular Momentum Engine > --- PROPULSION ------- Medium Treads Medium Treads Armored Medium Treads > --- UTILITY ---------- High-capacity Storage Unit Core Analyzer Hardened Medium Armor Plating Hardened Medium Armor Plating Improved Light Armor Plating > --- WEAPON ----------- Enhanced Autogun Flak Cannon Improved Plasma Cutter > --- INVENTORY -------- Nuclear Core Medium Treads Advanced Cooling System Large Storage Unit High-capacity Matter Pod Advanced Visual Processing Unit Core Analyzer Relay Coupler [NC] Relay Coupler [Grunt] Relay Coupler [Sentry] Relay Coupler [Hunter] Beamcaster Long-range Proton Cannon Rocket Launcher Missile Launcher Field Lobotomy Kit Axe [Rating: 55] Favorites ----------- Power Ion Engine Engine Ion Engine Power Core Nuclear Core Propulsion Medium Treads Treads Medium Treads Leg Carbon-fiber Leg Utility Large Storage Unit Device Improved Heat Sink Storage Large Storage Unit Processor Core Analyzer Protection Hardened Light Armor Plating Weapon Gauss Rifle Energy Gun Small Laser Energy Cannon Heavy Particle Cannon Ballistic Gun Gauss Rifle Ballistic Cannon Flak Cannon Launcher Rocket Launcher Special Weapon Improved Plasma Cutter Slashing Weapon Axe Build | -11 -10 -10 -9 -9 -9 -8 -8 -8 -8 -7 -7 ------- Run | Yrd Mat Min Mat Min Exi Min Mat Gar Mat Fac Gar Slots Evolved 6 | . . . 2 . . . 2 . . 2 . Power 1 | . . . . . . . . . . 1 . Propulsion 1 | . . . . . . . 1 . . . . Utility 3 | . . . 2 . . . . . . 1 . Weapon 1 | . . . . . . . 1 . . . . Parts Attached 113 | 8 6 3 12 5 1 10 19 24 15 2 8 Power 13 | 1 2 1 1 2 . . 1 3 . 1 1 Engine 9 | 1 2 1 1 2 . . 1 . . . 1 Core 4 | . . . . . . . . 3 . 1 . Reactor . | . . . . . . . . . . . . Propulsion 21 | 2 . . 2 1 . 4 7 3 2 . . Treads 19 | 2 . . 2 1 . 2 7 3 2 . . Leg 2 | . . . . . . 2 . . . . . Wheel . | . . . . . . . . . . . . Hover . | . . . . . . . . . . . . Flight . | . . . . . . . . . . . . Utility 32 | 2 1 1 3 1 1 1 5 4 9 1 3 Device 5 | 1 . . 2 . . . 1 . . . 1 Storage 4 | 1 1 . . . 1 . . . . 1 . Processor 1 | . . . . . . . . . 1 . . Hackware . | . . . . . . . . . . . . Protection 22 | . . 1 1 1 . 1 4 4 8 . 2 Artifact . | . . . . . . . . . . . . Weapon 47 | 3 3 1 6 1 . 5 6 14 4 . 4 Energy Gun 3 | 1 . . 1 1 . . . . . . . Energy Cannon 2 | . . . . . . . . . 2 . . Ballistic Gun 27 | 2 3 . 4 . . 4 6 7 1 . . Ballistic Cannon 1 | . . . . . . . . . 1 . . Launcher 7 | . . 1 1 . . 1 . 2 . . 2 Special Weapon 2 | . . . . . . . . . . . 2 Impact Weapon . | . . . . . . . . . . . . Slashing Weapon 5 | . . . . . . . . 5 . . . Piercing Weapon . | . . . . . . . . . . . . Special Melee Weapon . | . . . . . . . . . . . . Unidentified Prototypes 3 | . . . 1 . . . 1 . 1 . . Parts Lost 29 | . 1 . 3 4 . 2 . 5 1 . 13 Power 5 | . . . 1 1 . . . 1 . . 2 Propulsion 5 | . . . . 1 . 1 . . . . 3 Utility 10 | . . . 1 1 . 1 . 3 . . 4 Weapon 9 | . 1 . 1 1 . . . 1 1 . 4 Highest Loss Streak 13 | . 1 . 1 3 . 2 . 2 1 . 13 To Critical Strikes . | . . . . . . . . . . . . Average Slot Usage (%) 97 | . 99 100 94 92 100 99 100 99 99 85 85 Engine 7 | . 14 14 11 10 11 11 9 1 . . 4 Core 3 | . . . . . . . . 7 9 8 8 Treads 24 | . 28 28 22 17 22 21 27 27 27 23 19 Device 6 | . 14 1 12 11 11 11 9 5 . . . Storage 10 | . 14 14 11 11 11 11 9 9 9 7 7 Processor 1 | . . . . . . . . . 6 7 7 Protection 17 | . . 12 16 19 22 22 18 21 20 15 16 Energy Gun 1 | . . . 5 8 11 1 . . . . . Energy Cannon 1 | . . . . . . . . . 7 . . Ballistic Gun 15 | . 27 14 5 11 11 20 26 20 9 7 6 Launcher 2 | . . 14 9 2 . . . . . . 1 Slashing Weapon 2 | . . . . . . . . 5 9 7 2 Peak Build Rating 55 | 7 9 14 22 21 20 25 44 46 45 47 55 Average Rating 30 | 5 8 12 20 18 19 24 40 42 43 44 45 On Entrance 24 | . 7 9 14 21 19 20 23 44 44 44 46 Naked Turns . | . . . . . . . . . . . . Heaviest Build 88 | 12 29 40 45 45 40 44 55 62 58 82 88 Greatest Support 84 | 40 40 40 46 46 46 46 84 84 83 83 83 Greatest Overweight (x) 15 | . . . 1 1 . 1 . . . . 15 Average Overweight (x) . | . . . . . . . . . . . . Largest Inventory Capacity 20 | 8 15 15 15 15 15 15 15 15 15 20 20 Average Capacity 14 | 7 9 15 15 15 15 15 15 15 15 15 20 Most Carried 17 | 1 15 15 15 15 15 15 15 15 15 15 17 Average Carried 14 | . 8 14 14 14 14 14 14 14 14 14 16 Final Capacity 20 | 8 15 15 15 15 15 15 15 15 15 20 20 Final Carried 15 | 1 14 15 15 15 15 15 15 14 15 15 15 Class Distribution -------------------- 77% | Mutant 13% | Tank 5% | Scavenger-Mutant 3% | Scavenger-Tank Dominant Class ---------------- Mutant | -10/Materials Mutant | -10/Mines Mutant | -9/Materials Mutant | -9/Mines Mutant | -9/Exiles Scavenger-Mutant | -8/Mines Tank | -8/Materials Mutant | -8/Garrison Mutant | -8/Materials Mutant | -7/Factory Tank | -7/Garrison Resources | -11 -10 -10 -9 -9 -9 -8 -8 -8 -8 -7 -7 ----------- Run | Yrd Mat Min Mat Min Exi Min Mat Gar Mat Fac Gar Matter Collected 3218 | 285 287 260 393 151 . 209 438 780 293 54 68 Remotely . | . . . . . . . . . . . . Salvage Created 2977 | 98 282 19 531 314 . 134 378 724 383 . 114 Parts 193 | 6 28 1 47 28 . 12 14 34 16 . 7 Haulers Intercepted 1 | . . . 1 . . . . . . . . Recyclers Shooed 6 | . 1 1 . . . . 1 . 3 . . Parts Field Recycled . | . . . . . . . . . . . . Retrieved Matter . | . . . . . . . . . . . . Parts Self-Destructed . | . . . . . . . . . . . . Prevented . | . . . . . . . . . . . . Kills | -11 -10 -10 -9 -9 -9 -8 -8 -8 -8 -7 -7 ------- Run | Yrd Mat Min Mat Min Exi Min Mat Gar Mat Fac Gar Combat Hostiles Destroyed 89 | . 10 1 20 12 . 6 9 18 7 . 6 Melee 1 | . . . . . . . . 1 . . . Guns 49 | . 10 . 3 9 . 2 8 11 6 . . Cannons 2 | . . . . . . . . . 1 . 1 AOE 37 | . . 1 17 3 . 4 1 6 . . 5 Classes Destroyed 14 | 2 4 1 3 1 . 1 1 1 . . . Worker 6 | . 1 1 3 1 . . . . . . . Builder 1 | . . . . 1 . . . . . . . Tunneler 3 | 1 . 1 1 . . . . . . . . Hauler 1 | . . . 1 . . . . . . . . Recycler 3 | 1 . . . 1 . . 1 . . . . Operator 1 | . . . . . . . 1 . . . . Watcher 5 | . 3 . 2 . . . . . . . . Swarmer 39 | . 8 . 10 7 . 4 4 3 . . 3 Grunt 27 | . 2 . 6 5 . . 2 6 3 . 3 Brawler 1 | . . . 1 . . . . . . . . Duelist 2 | . . . . . . . . 1 1 . . Sentry 12 | . . 1 3 . . . 2 3 3 . . Hunter 6 | . . . . . . 2 1 3 . . . Zionite 1 | . . . 1 . . . . . . . . Savage 1 | . . . . . . . . 1 . . . Guerrilla 1 | . . . . . . . . 1 . . . Best Kill Streak 7 | 2 3 1 7 4 . 4 5 4 2 . 4 Combat Bots Only 6 | . 3 1 6 4 . 4 4 4 2 . 4 Max Kills in Single Turn 3 | 1 1 1 2 3 . 3 2 3 1 . 2 Gunslinging 1 | . . . . . . . 1 . . . . Exploded 3 | . . 1 2 3 . 3 1 3 . . 2 Melee 1 | . . . . . . . . 1 . . . Uniques/NPCs Destroyed . | . . . . . . . . . . . . Combat | -11 -10 -10 -9 -9 -9 -8 -8 -8 -8 -7 -7 -------- Run | Yrd Mat Min Mat Min Exi Min Mat Gar Mat Fac Gar Hostile Shots Fired 716 | . 66 20 75 38 . 29 53 126 39 . 270 Missed 174 | . 19 7 28 10 . 4 15 27 4 . 60 Damage Taken 6891 | . 452 189 688 341 . 375 346 1450 525 . 2525 Core 1232 | . 79 58 87 16 . . 81 180 30 . 701 Absorbed by Shields 140 | . . . . . . . . 140 . . . Redirected to Shielding 32 | . . . . . . . . 32 . . . Ignored by Resistances 176 | . . . . . . . 73 103 . . . Core Remaining (%) 66 | 100 . 45 . . . 74 . . 47 . . Volleys Fired 253 | 3 35 5 33 28 . 16 23 59 29 2 20 Largest 3 | 2 2 2 2 2 . 2 3 3 2 2 3 Hottest 103 | 40 40 53 83 63 . 68 89 84 103 69 102 Shots Fired 482 | 6 69 8 54 42 . 32 64 132 44 3 28 Gun 407 | 6 69 3 31 41 . 30 61 123 33 2 8 Cannon 19 | . . . . . . . . . 11 1 7 Launcher 54 | . . 5 23 1 . 2 3 9 . . 11 Special 2 | . . . . . . . . . . . 2 Kinetic 371 | 6 69 3 7 28 . 23 61 123 33 3 15 Thermal 31 | . . . . 13 . 7 . . 11 . . Explosive 54 | . . 5 23 1 . 2 3 9 . . 11 Electromagnetic 24 | . . . 24 . . . . . . . . Robot Hit Streak 16 | 4 5 4 8 9 . 10 9 14 16 7 3 Robot Miss Streak 5 | 1 5 1 3 2 . 2 2 2 2 1 4 Penetration Max 1 | . . . . . . . 1 1 1 . . Secondary Targets 5 | . . . . 1 . . 3 1 . . . Max Gunslinging Chain 1 | . . . . 1 . . 1 1 . . . Shots Hit Robots 299 | 4 35 4 33 28 . 21 37 85 35 2 15 Core Hits 193 | 3 18 8 40 16 . 9 17 44 15 3 20 Critical Kills 2 | . . . . . . . . 2 . . . Critical Parts Destroyed 2 | . . . . . . . . 1 1 . . Critical Strikes 5 | . . . 1 . . . . 3 1 . . Destroy 4 | . . . . . . . . 3 1 . . Corrupt 1 | . . . 1 . . . . . . . . Melee Attacks 98 | . . . . . . . . 98 . . . Impact . | . . . . . . . . . . . . Slashing 98 | . . . . . . . . 98 . . . Piercing . | . . . . . . . . . . . . Sneak Attacks . | . . . . . . . . . . . . Combat Hostiles . | . . . . . . . . . . . . Follow-up Attacks . | . . . . . . . . . . . . Damage Inflicted 8890 | 39 492 215 2003 623 . 444 940 2072 828 46 1188 Guns 4287 | 39 480 10 378 408 . 239 782 1300 546 19 86 Cannons 386 | . . . . . . . . . 225 27 134 Explosions 3989 | . . 152 1596 189 . 196 158 730 . . 968 Melee 42 | . . . . . . . . 42 . . . Ramming 186 | . 12 53 29 26 . 9 . . 57 . . Kinetic 3995 | 39 480 10 97 292 . 183 782 1300 546 46 220 Thermal 439 | . . . 42 116 . 56 . . 225 . . Explosive 3947 | . . 152 1554 189 . 196 158 730 . . 968 Electromagnetic 281 | . . . 281 . . . . . . . . Impact . | . . . . . . . . . . . . Slashing 42 | . . . . . . . . 42 . . . Piercing . | . . . . . . . . . . . . Highest Corruption . | . . . . . . . . . . . . Average Corruption . | . . . . . . . . . . . . Corruption Purged . | . . . . . . . . . . . . Corruption Blocked . | . . . . . . . . . . . . Overload Shots . | . . . . . . . . . . . . Overflow Damage 174 | . . . 71 40 . 51 . 10 . . 2 Projectiles 2 | . . . . . . . . . . . 2 Explosions 172 | . . . 71 40 . 51 . 10 . . . Melee . | . . . . . . . . . . . . Knockbacks 8 | . . . . . . . . . 4 . 4 Impact 4 | . . . . . . . . . 4 . . Kinetic 4 | . . . . . . . . . . . 4 Secondary . | . . . . . . . . . . . . Self-Inflicted Damage 262 | . . . 110 16 . . . 76 . . 60 Shots 10 | . . . 4 1 . . . 3 . . 2 Rammed 24 | . 2 4 3 3 . 1 . . 11 . . Targets Rammed 28 | . 2 6 3 5 . 1 . . 11 . . Kicked . | . . . . . . . . . . . . Crushed 4 | . . 2 . 2 . . . . . . . Highest Temperature 647 | . 2 61 13 34 . 8 26 459 261 34 647 Average Temperature 136 | . 2 42 5 11 . 6 11 147 108 16 263 Received Heat Transfer 2105 | . 57 72 174 150 . . 90 344 261 . 957 Effects 34 | . . . . . . . . 10 . . 24 Shutdowns 2 | . . . . . . . . 1 . . 1 Energy Bleed 4 | . . . . . . . . . . . 4 Interference 3 | . . . . . . . . . . . 3 Short Circuit 5 | . . . . . . . . 2 . . 3 Damage (minor) 3 | . . . . . . . . 1 . . 2 Damage (major) 14 | . . . . . . . . 6 . . 8 Damage (core) 3 | . . . . . . . . . . . 3 Siege Activations . | . . . . . . . . . . . . Robots Corrupted . | . . . . . . . . . . . . Combat Hostiles . | . . . . . . . . . . . . Parts Fried . | . . . . . . . . . . . . Impact Corruptions . | . . . . . . . . . . . . Robots Melted . | . . . . . . . . . . . . Combat Hostiles . | . . . . . . . . . . . . Parts Melted 1 | . . . 1 . . . . . . . . Heat Transferred 758 | . . . 50 250 . 125 . . 333 . . Parts Sabotaged . | . . . . . . . . . . . . Parts Stolen . | . . . . . . . . . . . . Parts Stripped . | . . . . . . . . . . . . Power Chain Reactions 1 | . . . 1 . . . . . . . . Alert | -11 -10 -10 -9 -9 -9 -8 -8 -8 -8 -7 -7 ------- Run | Yrd Mat Min Mat Min Exi Min Mat Gar Mat Fac Gar Peak Influence 1335 | 10 174 101 503 309 . 115 220 1335 796 . 214 Initial 650 | . 6 42 3 147 . . 44 3 650 . . Average 233 | 4 103 34 259 118 . 34 73 531 341 . 71 Maximum Alert Level 4 | . . . 2 1 . . 1 4 3 . 1 Low Security (%) 61 | 100 100 100 36 74 . 100 85 28 25 100 98 Level 1 19 | . . . 52 25 . . 14 16 36 . 1 Level 2 10 | . . . 11 . . . . 22 29 . . Level 3 4 | . . . . . . . . 16 8 . . Level 4 3 | . . . . . . . . 15 . . . Level 5 . | . . . . . . . . . . . . High Security . | . . . . . . . . . . . . Max Security . | . . . . . . . . . . . . Squads Dispatched 16 | . 2 1 4 1 . . 1 . 5 2 . Investigation 4 | . 1 1 2 . . . . . . . . Extermination 1 | . . . . . . . . . . 1 . Reinforcement 10 | . 1 . 2 1 . . 1 . 4 1 . Assault 1 | . . . . . . . . . 1 . . Garrison . | . . . . . . . . . . . . Intercept . | . . . . . . . . . . . . Searches Triggered . | . . . . . . . . . . . . Construction Impeded 2 | . . . 1 1 . . . . . . . Haulers Reinforced . | . . . . . . . . . . . . Active Scanning Responses . | . . . . . . . . . . . . Cargo Convoy Interrupts . | . . . . . . . . . . . . Stealth | -11 -10 -10 -9 -9 -9 -8 -8 -8 -8 -7 -7 --------- Run | Yrd Mat Min Mat Min Exi Min Mat Gar Mat Fac Gar Distress Signals 8 | . . . 2 . . . 2 2 1 1 . Communications Jammed . | . . . . . . . . . . . . Distress Signals . | . . . . . . . . . . . . Times Spotted 127 | . 20 2 35 10 . 4 15 15 7 5 14 Peak Tracking Total 8 | . 4 2 6 3 . 4 3 3 2 2 8 Tactical Retreats 6 | . 3 . . 1 . . 1 1 . . . Traps | -11 -10 -10 -9 -9 -9 -8 -8 -8 -8 -7 -7 ------- Run | Yrd Mat Min Mat Min Exi Min Mat Gar Mat Fac Gar Traps Triggered 4 | . 2 . 2 . . . . . . . . Indirectly . | . . . . . . . . . . . . Trap Hack Attempts . | . . . . . . . . . . . . Triggered . | . . . . . . . . . . . . Disarmed . | . . . . . . . . . . . . Reprogrammed . | . . . . . . . . . . . . Reused . | . . . . . . . . . . . . Traps Extracted . | . . . . . . . . . . . . Installed . | . . . . . . . . . . . . Triggered . | . . . . . . . . . . . . Machines | -11 -10 -10 -9 -9 -9 -8 -8 -8 -8 -7 -7 ---------- Run | Yrd Mat Min Mat Min Exi Min Mat Gar Mat Fac Gar Machines Disabled 13 | . . 2 4 . . 1 1 3 1 . 1 Max in Single Turn 1 | . . 1 1 . . 1 1 1 1 . 1 Garrison Access 1 | . . . . . . . . . 1 . . Garrison Relay 2 | . . . . . . . . 2 . . . Machines Repaired . | . . . . . . . . . . . . Machines Dismantled 1 | . . . . . . . . . . . 1 Machines Sabotaged . | . . . . . . . . . . . . Overloaded Fab Kills . | . . . . . . . . . . . . Hacking | -11 -10 -10 -9 -9 -9 -8 -8 -8 -8 -7 -7 --------- Run | Yrd Mat Min Mat Min Exi Min Mat Gar Mat Fac Gar Machines Accessed 36 | . 6 1 6 1 1 . 6 3 8 2 2 Terminals 31 | . 6 . 6 . . . 5 3 8 1 2 Fabricators . | . . . . . . . . . . . . Repair Stations . | . . . . . . . . . . . . Recycling Units . | . . . . . . . . . . . . Scanalyzers . | . . . . . . . . . . . . Garrison Access 2 | . . . . . . . 1 . . 1 . Total Hacks 109 | . 20 1 20 1 1 . 25 5 28 2 6 Successful 69 | . 17 1 15 1 1 . 14 3 15 1 1 Failed 40 | . 3 . 5 . . . 11 2 13 1 5 Catastrophic 6 | . 1 . 1 . . . 1 . 2 1 . Database Lockouts . | . . . . . . . . . . . . Manual 76 | . 17 . 15 . 1 . 15 2 24 1 1 Terminals 100 | . 20 . 20 . . . 20 5 28 1 6 Fabricators . | . . . . . . . . . . . . Repair Stations . | . . . . . . . . . . . . Recycling Units . | . . . . . . . . . . . . Scanalyzers . | . . . . . . . . . . . . Garrison Access 6 | . . . . . . . 5 . . 1 . Terminal Hacks 29 | . 7 1 6 1 1 . 4 2 6 . 1 Record 1 | . . . 1 . . . . . . . . Robot Analysis 2 | . 2 . . . . . . . . . . Prototype ID Bank 2 | . 1 . . . . . 1 . . . . Open Door 3 | . . 1 . 1 . . . 1 . . . Branch Access Points 2 | . . . . . . . 1 . 1 . . Emergency Access Points 1 | . . . . . . . 1 . . . . Terminal Index 2 | . 1 . 1 . . . . . . . . Alert Level 1 | . . . . . . . . . 1 . . Unreport Threat 6 | . . . 2 . . . 1 . 3 . . Locate Traps 2 | . 2 . . . . . . . . . . Recall Investigation 2 | . 1 . 1 . . . . . . . . Zone Layout 2 | . . . 1 . . . . . 1 . . Garrison Registry 1 | . . . . . . . . 1 . . . Security Stations 1 | . . . . . . . . . . . 1 Derelict Proto ID Bank 1 | . . . . . 1 . . . . . . Fabricator Hacks . | . . . . . . . . . . . . Repair Station Hacks . | . . . . . . . . . . . . Recycling Unit Hacks . | . . . . . . . . . . . . Scanalyzer . | . . . . . . . . . . . . Garrison Access Hacks 3 | . . . . . . . 2 . . 1 . Unlock Access 2 | . . . . . . . 1 . . 1 . Coupler Status 1 | . . . . . . . 1 . . . . Unauthorized Hacks 37 | . 10 . 9 . . . 8 1 9 . . Terminals 37 | . 10 . 9 . . . 8 1 9 . . Botnet 16 | . 4 . 4 . . . 3 1 4 . . Skim 21 | . 6 . 5 . . . 5 . 5 . . Fabricators . | . . . . . . . . . . . . Repair Stations . | . . . . . . . . . . . . Recycling Units . | . . . . . . . . . . . . Scanalyzers . | . . . . . . . . . . . . Garrison Access . | . . . . . . . . . . . . Data Cores Recovered 1 | . . . . . . . 1 . . . . Used 1 | . . . . . . . 1 . . . . Hacking Detections 25 | . 5 . 5 . . . 4 1 7 1 2 Full Trace Events . | . . . . . . . . . . . . Feedback Events . | . . . . . . . . . . . . Feedback Blocked . | . . . . . . . . . . . . Robot Schematics Acquired . | . . . . . . . . . . . . Robots Built . | . . . . . . . . . . . . Authchips . | . . . . . . . . . . . . Time . | . . . . . . . . . . . . Total Robot Build Rating . | . . . . . . . . . . . . Part Schematics Acquired . | . . . . . . . . . . . . Parts Built . | . . . . . . . . . . . . Authchips . | . . . . . . . . . . . . Time . | . . . . . . . . . . . . Total Part Build Rating . | . . . . . . . . . . . . Parts Repaired . | . . . . . . . . . . . . Time . | . . . . . . . . . . . . Parts Recycled . | . . . . . . . . . . . . Recycled Matter . | . . . . . . . . . . . . Retrieved Matter . | . . . . . . . . . . . . Retrieved Components . | . . . . . . . . . . . . Parts Scanalyzed . | . . . . . . . . . . . . Part Schematics Acquired . | . . . . . . . . . . . . Parts Damaged . | . . . . . . . . . . . . Bothacking | -11 -10 -10 -9 -9 -9 -8 -8 -8 -8 -7 -7 ------------ Run | Yrd Mat Min Mat Min Exi Min Mat Gar Mat Fac Gar Used RIF Installer 2 | . . . . . . . . 2 . . . Signal Jammer 1 | . . . . . . . . 1 . . . Robots Hacked . | . . . . . . . . . . . . Non-combat . | . . . . . . . . . . . . Combat . | . . . . . . . . . . . . Robot Hacks Applied . | . . . . . . . . . . . . Relay Couplers Released 9 | . . . . . . . . 7 2 . . Machine Destruction 9 | . . . . . . . . 7 2 . . Fabnet Peak Effective % . | . . . . . . . . . . . . Robots Rewired . | . . . . . . . . . . . . Allies Hacked . | . . . . . . . . . . . . Hacks Repelled . | . . . . . . . . . . . . Allies | -11 -10 -10 -9 -9 -9 -8 -8 -8 -8 -7 -7 -------- Run | Yrd Mat Min Mat Min Exi Min Mat Gar Mat Fac Gar Total Allies 8 | . . 2 . . . . . . . 3 3 Largest Group 3 | . . 2 2 . . . . . . 3 3 Highest-Rated Group 93 | . . 45 45 . . . . . . 93 93 Highest-Rated Ally 32 | . . 31 31 . . . . . . 31 32 Total Orders . | . . . . . . . . . . . . Ally Attacks 48 | . . . 27 . . . . . . . 21 Total Damage 700 | . . . 419 . . . . . . . 281 Kills 15 | . . . 10 . . . . . . . 5 Allies Corrupted . | . . . . . . . . . . . . Allies Melted . | . . . . . . . . . . . . Field Lobotomies 2 | . . . . . . . . . . . 2 Intel | -11 -10 -10 -9 -9 -9 -8 -8 -8 -8 -7 -7 ------- Run | Yrd Mat Min Mat Min Exi Min Mat Gar Mat Fac Gar Robot Analysis Total 2 | . 2 . . . . . . . . . . Derelict Logs Recovered 3 | . . 2 . 1 . . . . . . . Drone Launches . | . . . . . . . . . . . . Drone Recoveries . | . . . . . . . . . . . . Exploration | -11 -10 -10 -9 -9 -9 -8 -8 -8 -8 -7 -7 ------------- Run | Yrd Mat Min Mat Min Exi Min Mat Gar Mat Fac Gar Turns Passed 12833 | 116 1186 1037 1135 1556 376 764 1151 2656 2111 292 453 Spaces Moved 6327 | 61 654 619 633 726 234 432 329 1345 962 174 158 Core 4 | 3 . . . . . . . . . . 1 Treads 6323 | 58 654 619 633 726 234 432 329 1345 962 174 157 Legs . | . . . . . . . . . . . . Wheels . | . . . . . . . . . . . . Hover . | . . . . . . . . . . . . Flight . | . . . . . . . . . . . . Fastest Speed 50 | 50 160 160 160 160 160 160 160 160 163 163 163 Average Speed 165 | 154 160 160 161 188 160 160 160 160 163 163 208 Slowest Speed 800 | 160 160 160 240 240 160 240 160 163 163 163 800 Overloaded Moves . | . . . . . . . . . . . . Propulsion Burnouts . | . . . . . . . . . . . . Robots Hopped . | . . . . . . . . . . . . Cave-ins Triggered . | . . . . . . . . . . . . Exploration Rate (%) 60 | 5 84 97 65 99 62 94 31 75 82 10 24 Regions Visited 11 Branch Regions 4 Pre-discovered Areas 7 | . 3 2 . . . . 1 . 1 . . Known Exits Taken 6 | . 1 1 . . . 1 1 . 1 1 . Unknown Exits Taken 4 | 1 . . 1 1 1 . . . . . . Scrap Searched 3 | . . 1 . . . 2 . . . . . Spaces Dug 52 | . . . . . . . . 50 . . 2 Terrain Destroyed 360 | . . 34 178 10 . 10 26 73 4 . 25 Melee 37 | . . . . . . . . 37 . . . Projectile 7 | . . . . . . . . 3 4 . . AOE 316 | . . 34 178 10 . 10 26 33 . . 25 Terrain Rammed . | . . . . . . . . . . . . Walls Destroyed . | . . . . . . . . . . . . Machines Disabled . | . . . . . . . . . . . . Actions | -11 -10 -10 -9 -9 -9 -8 -8 -8 -8 -7 -7 --------- Run | Yrd Mat Min Mat Min Exi Min Mat Gar Mat Fac Gar Total 8087 | 73 724 656 695 868 237 470 912 1570 1458 180 244 Wait 1155 | 1 12 16 1 104 . 4 518 26 425 1 47 Move 6317 | 60 653 618 632 725 233 431 329 1343 961 174 158 Hop . | . . . . . . . . . . . . Pick Up 49 | 1 12 4 5 1 1 3 7 9 5 . 1 Fast Attach 18 | 7 1 . 4 2 . 1 . . 1 1 1 Attach 18 | . . . 2 2 . 1 2 7 . 1 3 Detach 3 | . . . . . . . . 1 . 1 1 Swap 78 | 1 5 3 7 1 1 8 17 17 14 . 4 Drop 61 | . 4 4 8 . 2 5 16 10 12 . . Fire 253 | 3 35 5 33 28 . 16 23 59 29 2 20 Melee 98 | . . . . . . . . 98 . . . Ram . | . . . . . . . . . . . . Kick . | . . . . . . . . . . . . Crush 28 | . 2 6 3 5 . 1 . . 11 . . Escape Stasis . | . . . . . . . . . . . . Rewire . | . . . . . . . . . . . . Trap . | . . . . . . . . . . . . Miscellaneous 9 | . . . . . . . . . . . 9 Route ------- -11/Scrapyard -10/Materials (discovered 5 exits: *Mat x3 / *Min x2) -10/Mines (discovered 2 exits: *Mat x2) -9/Materials (discovered 4 exits: *Mat x3 / *Min) -9/Mines (discovered 3 exits: *Mat x2 / *Exi) -9/Exiles (discovered 2 exits: [*Min x2]) -8/Mines -8/Materials (discovered 4 exits: *Fac x3 / Gar) -8/Garrison (discovered 3 exits: *Mat x3) -8/Materials (discovered 3 exits: *Fac x3) -7/Factory (discovered 7 exits: Fac x4 / Sto / Low / Gar) -7/Garrison History --------- Turn | Location | Event 38 | -11/Scrapyard | Discovered new exit (range 16) 117 | -11/Scrapyard | Entered Materials 308 | -10/Materials | Build established: Mutant 710 | -10/Materials | Discovered new exit (range 12) 721 | -10/Materials | Learned location of Mines (-9) 794 | -10/Materials | Identified exit to Materials 794 | -10/Materials | Identified exit to Mines 819 | -10/Materials | Discovered exit to Materials (range 16) 820 | -10/Materials | Learned location of 2 exits from Subcaves 838 | -10/Materials | Learned location of 2 exits from Subcaves 840 | -10/Materials | Learned location of Subcaves (-10) 841 | -10/Materials | Learned location of 1 exit from Recycling 842 | -10/Materials | Learned 4 Recycling zone layouts 851 | -10/Materials | Learned location of Mines (-8) 1303 | -10/Materials | Entered Mines 1416 | -10/Mines | Core integrity fell below 50% 1579 | -10/Mines | Met a Derelict shopkeep closing up shop 2042 | -10/Mines | Learned location of Storage (-7) 2118 | -10/Mines | Learned Materials terminal intel 2340 | -10/Mines | Entered Materials 2340 | -9/Materials | Accompanied by 2 allies 2340 | -9/Materials | Evolved 2 slots: Utility x2 2341 | -9/Materials | Loaded intel: 12 terminal locations 2345 | -9/Materials | Led the pair of lost Derelicts to an unsafe place 3010 | -9/Materials | Discovered new exit (range 4) 3058 | -9/Materials | Lost 3 allies 3275 | -9/Materials | Discovered new exit (range 9) 3280 | -9/Materials | Loaded intel: 13 trap records 3320 | -9/Materials | Learned Recycling recycling unit intel 3369 | -9/Materials | Learned location of 1 exit from Storage 3376 | -9/Materials | Learned Materials trap positions 3377 | -9/Materials | Learned location of 1 exit from Recycling 3384 | -9/Materials | Identified exit to Materials 3403 | -9/Materials | Learned location of 2 exits from Materials 3432 | -9/Materials | Learned Materials trap positions 3475 | -9/Materials | Entered Mines 3507 | -9/Mines | Assembled infested the area 3710 | -9/Mines | Discovered new exit (range 5) 3800 | -9/Mines | Discovered exit to Materials (range 5) 3821 | -9/Mines | Lost 3 parts (1p1u1w) 4074 | -9/Mines | Received a Rocket Launcher from a helpful Derelict 4133 | -9/Mines | Discovered exit to Materials (range 10) 4158 | -9/Mines | Met a Derelict who couldn't figure out how to use a Trap Extractor 5031 | -9/Mines | Entered Exiles 5055 | -9/Exiles | Discovered new exit (range 15) 5075 | -9/Exiles | Met 8R-AWN 5097 | -9/Exiles | Met EX-HEX 5143 | -9/Exiles | Met EX-BIN 5161 | -9/Exiles | Aligned with FarCom system 5163 | -9/Exiles | Given EX-Vault access code 5201 | -9/Exiles | Opened EX-Vault 5211 | -9/Exiles | Found Field Lobotomy Kit 5244 | -9/Exiles | Warned to stay clear of 0b10 Research branches 5299 | -9/Exiles | Met EX-DEC 5394 | -9/Exiles | Discovered new exit (range 10) 5407 | -9/Exiles | Left Exiles lab with Field Lobotomy Kit 5407 | -9/Exiles | Entered Mines 5824 | -8/Mines | Build established: Scavenger-Mutant 6117 | -8/Mines | Discovered exit to Materials (range 14) 6171 | -8/Mines | Entered Materials 6171 | -8/Materials | Evolved 2 slots: Propulsion x1, Weapon x1 6172 | -8/Materials | Identified exit to Factory 6173 | -8/Materials | Loaded intel: 16 trap records 6709 | -8/Materials | Discovered exit to Factory (range 8) 6739 | -8/Materials | Build established: Tank 6804 | -8/Materials | Learned Factory trap positions 6877 | -8/Materials | Learned location of 1 exit from Recycling 6942 | -8/Materials | Learned Storage stockpile data 6998 | -8/Materials | Learned location of 1 exit from Recycling 7126 | -8/Materials | Learned location of 1 exit from Recycling 7184 | -8/Materials | Learned 4 Recycling zone layouts 7254 | -8/Materials | Learned location of 1 exit from Extension 7322 | -8/Materials | Identified exit to Garrison 7322 | -8/Materials | Entered Garrison 7799 | -8/Garrison | Build established: Mutant 7844 | -8/Garrison | Triggered checkpoint 8290 | -8/Garrison | Triggered checkpoint 8298 | -8/Garrison | Triggered checkpoint 8538 | -8/Garrison | Triggered checkpoint 8585 | -8/Garrison | Discovered new exit (range 3) 8859 | -8/Garrison | Triggered checkpoint 8949 | -8/Garrison | Discovered new exit (range 26) 8949 | -8/Garrison | Discovered new exit (range 47) 8949 | -8/Garrison | Discovered new exit (range 50) 9052 | -8/Garrison | Triggered checkpoint 9093 | -8/Garrison | Installed Relay Interface Framework 9138 | -8/Garrison | Garrison Relay disabled 9246 | -8/Garrison | Triggered checkpoint 9268 | -8/Garrison | Garrison Relay disabled 9481 | -8/Garrison | Expanded RIF knowledge: Signal Jamming 9886 | -8/Garrison | Spotted B-75 Beast 9978 | -8/Garrison | Entered Materials 9979 | -8/Materials | Loaded intel: 15 trap records 10145 | -8/Materials | Core integrity fell below 50% 10760 | -8/Materials | Discovered exit to Factory (range 8) 11234 | -8/Materials | Met 7R-MNS 11735 | -8/Materials | Learned 12 Factory zone layouts 11795 | -8/Materials | Learned location of 1 exit from Lower Caves 11848 | -8/Materials | Discovered exit to Factory (range 16) 11888 | -8/Materials | Learned location of 1 exit from Extension 11922 | -8/Materials | Learned location of 2 exits from Factory 12016 | -8/Materials | Learned Factory garrison access intel 12059 | -8/Materials | Learned Factory scanalyzer intel 12089 | -8/Materials | Entered Factory 12089 | -7/Factory | Evolved 2 slots: Power x1, Utility x1 12090 | -7/Factory | Caught up to 7R-MNS 12090 | -7/Factory | Identified exit to Storage 12090 | -7/Factory | Identified exit to Lower Caves 12091 | -7/Factory | Identified exit to Factory 12093 | -7/Factory | Loaded intel: 90 trap records 12094 | -7/Factory | Loaded intel: 4 scanalyzer locations 12095 | -7/Factory | Loaded intel: 4 garrison access locations 12335 | -7/Factory | Allied Derelicts emerged from ambush trap array 12380 | -7/Factory | Identified exit to Garrison 12381 | -7/Factory | Entered Garrison 12381 | -7/Garrison | Accompanied by 3 allies 12435 | -7/Garrison | Triggered checkpoint 12543 | -7/Garrison | Rescued a captive Derelict 12616 | -7/Garrison | Learned Factory security intel 12782 | -7/Garrison | Core integrity fell below 50% 12792 | -7/Garrison | Core integrity fell below 20% 12794 | -7/Garrison | Assimilated Y-54 Guardian with FLK Orb 12797 | -7/Garrison | Assimilated Y-54 Guardian with FLK Orb 12820 | -7/Garrison | Lost 13 parts (2p3n4u4w) 12834 | -7/Garrison | Destroyed by C-17 Slicer with Concussive RPG Last Messages --------------- 12779_ Arm. Medium Treads destroyed. 12780_ Overheating: Core damaged (-77). 12781_ Overheating: Energy bleed (-11). 12782_ Overheating: Core damaged (-84). 12783_ Overheating: Energy bleed (-4). 12783_ Flak Cannon destroyed. 12783_ Hrd. Medium Armor Plating destroyed. 12783_ Critical hit (Burn: +37). 12784_ Overheating: System interference. 12784_ Missile Launcher temporarily disabled. 12787_ Overheating: Broken Adv. Cooling System damaged (-4). 12787_ Missile Launcher destroyed. 12789_ Broken Adv. Cooling System destroyed. 12790_ Overheating: Energy bleed (-16). 12794_ Y-54 Guardian assimilated. 12795_ G-47 Trooper destroyed. 12797_ Y-54 Guardian assimilated. 12799_ Field Lobotomy Kit broken. 12799_ Overheating: Short circuit. 12799_ G-47 Trooper destroyed. Map ----- +----------------------------------------------------+ | ?????????????????????????????????????????????????? | | ?????????????????????????????????????????????????? | | ?????????????????????????????????????????????????? | | ?????????????????????????????????????????????????? | | ?????????????????????????????????????????????????? | | ?????????????????????????????????????????????????? | | ?????????????????????????????????????????????????? | | ?????????????????????????????????????????????????? | | ?????????????????????????????????????????????????? | | ?????????????????????????????????????????????????? | | ?????????????????????????????????????????????????? | | ????????????????????????????# #?????????????????? | | ???????????????????????????? ## ??????????????? | | ???????????????????????????? cc # ?? ????????????? | | ???????????????????????????? %^ ? ??????????? | | ???????????????????????????? %= ? ^ ??????????? | | ???????????????????????????? c ? ??????????? | | ???????????????????????????? # # ?????????? | | ???????????????????????????# # ????????? | | ??????????????????????????? ???????? | | ??????????????????????????? % ???????? | | ??????????????????????????? ???????? | | ?????????####?????????????? ???????? | | ?????"""""""""????????????##=% #??????? | | ?????"""!!!!!!"############ = [ =%= #??????? | | ????#"" @! Y #??????? | | ????#"! Y % #??????? | | ????#"! ### ######## =% #??????? | | ????#"! ??# #??????## # ## #???????? | | ????#"! ???# #???????? ###?? #???????????? | | ????#"" ????# #???????? #??????#???????????? | | ?????"""!!!!?????# #???????? #??????????????????? | | ?????"""""""?????# #?????????#??????????????????? | | ??????#####??????# #????????????????????????????? | | ?????????????????# #???#####????????????????????? | | ?????????????????# #####"T"#????????????????????? | | ?????????????????# "#????????????????????? | | ????????########## #########????????????????????? | | ????????# ####?????????????????????????? | | ????????# ^ ^# #?????????????????????????? | | ????????# ##### #### #?????????????????????????? | | ????????# #???# #??# #?????????????????????????? | | ????????#####???# #??# #???#######???????????????? | | ???????????###??# #??# #???#"""""#???????????????? | | ???????????# ####!####"###### ##???????????????? | | ??????????##=%! !%==!% #???????????????? | | ??????????#T[ #########= ########???????????????? | | ??????????## ##???????# #??????????????????????? | | ???????????# #????????#####??????????????????????? | | ???????????###???????????????????????????????????? | +----------------------------------------------------+ Best States ------------- Heat Dissipation 45 Energy Generation 27 Energy Capacity 380 Matter Stores 300 Matter Capacity 300 Sight Range 16 Terrain Scan Density 10 Armor Coverage 600 Resistance: KI 20 Power Shielding 66 Evasion (%) 40 Core Analysis 6 Recoil Reduction 3 Item Schematics ----------------- None Robot Schematics ------------------ None Fabricated ------------ Nothing Alien Tech Used ----------------- None Achievements -------------- None Challenges ------------ None Game ------ Seed DeuteriumKineticLauncher Manual? 0 Play Time 01:02:53 Cumulative 185.8 hours Start 2024.09.01 @ 21:39:49 End 2024.09.01 @ 22:50:37 Sessions 1 Manual Loads 0 Difficulty Rogue Special Mode None Game No. 159 Rogue 159 Adventurer 0 Explorer 0 Win Type - Total 1 Types 0/0/0/1/0/0/0/0/0 Lore% 63 Gallery% 72 Achievement% 53 Wizard Run 0 Options --------- Layout 2 ASCII 0 Keyboard 1 Movement Vi Keybinds 0 Fullscreen 1 Font 32/SmallcapsGlow Map View 77x44 Zoom Use 0% Tactical HUD 1 Map Filters NONE Filters NONE Steam 1 RUN: 2824280f-145a-4c8c-8658-cd52cba2e322